bitfinex/quotes_ETHUSD_20241130
["timestamp","ask_amount","ask_price","bid_price","bid_amount"]
[1732973827907,8.57148342,3677.4,3677.2,3.0]
[1732973827908,9.68148342,3677.4,3677.2,3.0]
[1732973828105,9.68148342,3677.4,3677.3,0.03751427]
[1732973828521,9.68148342,3677.4,3677.2,3.0]
[1732973828719,9.68148342,3677.4,3677.3,0.58751538]
[1732973829619,10.79148342,3677.4,3677.3,0.58751538]
[1732973831191,11.90148342,3677.4,3677.3,0.58751538]
[1732973832950,13.01148342,3677.4,3677.3,0.58751538]
[1732973834642,14.12148342,3677.4,3677.3,0.58751538]
[1732973836011,15.23148342,3677.4,3677.3,0.58751538]
[1732973837698,16.34148342,3677.4,3677.3,0.58751538]
[1732973839197,17.45148342,3677.4,3677.3,0.58751538]
[1732973841022,18.56148342,3677.4,3677.3,0.58751538]
[1732973842744,19.67148342,3677.4,3677.3,0.58751538]
[1732973844423,20.78148342,3677.4,3677.3,0.58751538]
[1732973845227,22.31078342,3677.4,3677.3,0.03751538]
[1732973845422,22.31078342,3677.4,3676.9,2.3458259]
[1732973845668,22.31078342,3677.4,3677.0,0.0371816]
[1732973846027,23.42078342,3677.4,3677.0,0.0371816]
[1732973846762,23.42078342,3677.4,3677.2,0.2715]
[1732973847171,23.42078342,3677.4,3677.3,0.03707882]
[1732973847663,23.42078342,3677.4,3677.3,0.03707282]
[1732973847893,24.53078342,3677.4,3677.2,0.2715]
[1732973848113,24.53078342,3677.4,3677.3,0.03713186]
[1732973848618,24.53078342,3677.4,3677.2,0.2715]
[1732973848759,24.53078342,3677.4,3677.3,0.0370925]
[1732973849204,24.53078342,3677.4,3677.2,0.2715]
[1732973849356,24.53078342,3677.4,3677.3,0.03713186]
[1732973849556,25.64078342,3677.4,3677.3,0.03713186]
[1732973849758,25.64078342,3677.4,3677.2,0.2715]
[1732973850093,25.64078342,3677.4,3677.3,0.03753419]
[1732973850596,25.64078342,3677.4,3677.3,0.2715]
[1732973850755,25.64078342,3677.4,3677.3,0.30903419]
[1732973851166,29.42586176,3677.4,3677.3,0.30903419]
[1732973851694,1.5068,3677.3,3676.7,0.29390205]
[1732973851902,1.5068,3677.3,3676.9,0.2715]
[1732973852873,2.6168,3677.3,3677.0,0.2715]
[1732973853758,2.6168,3677.3,3676.7,0.29390205]
[1732973854057,2.6168,3677.3,3676.9,0.2715]
[1732973854258,2.6168,3677.3,3677.0,0.03701546]
[1732973854458,3.7268,3677.3,3676.9,0.2715]
[1732973854683,3.7268,3677.3,3677.0,0.03704907]
[1732973855398,3.7268,3677.3,3676.9,0.2715]
[1732973855572,3.7268,3677.3,3677.2,0.55]
[1732973856098,3.7268,3677.3,3677.2,0.85916541]
[1732973856304,4.8368,3677.3,3677.2,0.85916541]
[1732973856896,4.8368,3677.3,3677.2,0.8215]
[1732973857963,5.9468,3677.3,3677.2,0.8215]
[1732973859498,7.0568,3677.3,3677.2,0.8215]
[1732973859896,9.78263547,3677.3,3677.2,0.55]
[1732973861263,10.89263547,3677.3,3677.2,0.55]
[1732973862946,12.00263547,3677.3,3677.2,0.55]
[1732973863881,9.2768,3677.3,3677.2,0.55]
[1732973864684,10.3868,3677.3,3677.2,0.55]
[1732973865282,10.3868,3677.3,3677.2,0.8215]
[1732973866275,11.4968,3677.3,3677.2,0.8215]
[1732973868123,12.6068,3677.3,3677.2,0.8215]
[1732973869563,13.7168,3677.3,3677.2,0.8215]
[1732973870071,12.21,3677.3,3677.2,2.6243259]
[1732973870273,12.21,3677.3,3677.2,7.4337259]
[1732973870538,12.21,3677.3,3677.2,0.8585852]
[1732973871027,12.21,3677.3,3677.2,0.8215]
[1732973871338,13.32,3677.3,3677.2,0.8215]
[1732973871489,13.32,3677.3,3677.2,0.85855393]
[1732973872917,14.43,3677.3,3677.2,0.85855393]
[1732973873379,14.43,3677.3,3677.2,0.8215]
[1732973874084,14.43,3677.3,3677.1,0.2715]
[1732973874507,15.54,3677.3,3677.1,0.2715]
[1732973874822,15.54,3677.3,3677.1,1.20822851]
[1732973875355,15.54,3677.3,3677.2,0.8215]
[1732973876066,16.65,3677.3,3677.2,0.8215]
[1732973877608,17.76,3677.3,3677.2,0.8215]
[1732973879156,18.87,3677.3,3677.2,0.8215]
[1732973881023,19.98,3677.3,3677.2,0.8215]
[1732973882724,21.09,3677.3,3677.2,0.8215]
[1732973884423,22.2,3677.3,3677.2,0.8215]
[1732973884930,24.92583547,3677.3,3677.2,0.8215]
[1732973885327,22.2,3677.3,3677.2,0.8215]
[1732973886187,23.31,3677.3,3677.2,0.8215]
[1732973887858,24.42,3677.3,3677.2,0.8215]
[1732973889694,25.53,3677.3,3677.2,0.8215]
[1732973890891,25.53,3677.3,3677.2,0.55]
[1732973891095,26.99880198,3677.3,3677.0,0.8215]
[1732973891246,28.10880198,3677.3,3677.0,0.8215]
[1732973893056,29.21880198,3677.3,3677.0,0.8215]
[1732973893407,1.5252,3677.2,3677.0,0.8215]
[1732973894860,2.6352,3677.2,3677.0,0.8215]
[1732973896460,3.7452,3677.2,3677.0,0.8215]
[1732973898392,4.8552,3677.2,3677.0,0.8215]
[1732973900009,5.9652,3677.2,3677.0,0.8215]
[1732973901717,7.0752,3677.2,3677.0,0.8215]
[1732973903610,8.1852,3677.2,3677.0,0.8215]
[1732973905361,9.2952,3677.2,3677.0,0.8215]
[1732973907215,10.4052,3677.2,3677.0,0.8215]
[1732973908365,3.66256398,3677.1,3677.0,0.2715]
[1732973908610,3.66256398,3677.1,3676.7,0.02240205]
[1732973908764,1.5924,3677.0,3676.7,0.02240205]
[1732973909977,1.5924,3676.8,3676.7,0.02240205]
[1732973910178,2.2288964,3676.8,3676.7,0.02240205]
[1732973910379,3.3388964,3676.8,3676.7,0.02240205]
[1732973911200,3.4388964,3676.8,3676.7,0.02240205]
[1732973911397,1.5924,3676.7,3675.3,0.93672851]
[1732973911567,0.93672851,3676.6,3675.6,1.088149]
[1732973911994,2.04672851,3676.6,3675.7,0.03848737]
[1732973912211,2.52164136,3676.6,3675.7,0.03848737]
[1732973912626,2.52164136,3676.6,3675.8,0.55]
[1732973913046,2.52164136,3676.6,3676.0,0.55]
[1732973913327,0.93672851,3676.4,3676.1,0.03832529]
[1732973913686,1.5839,3676.3,3676.2,0.00183341]
[1732973914017,2.10545414,3676.3,3676.2,0.00183341]
[1732973914719,2.10545414,3676.3,3675.3,4.088211]
[1732973914864,0.93672851,3676.2,3675.4,0.03860895]
[1732973915300,2.04672851,3676.2,3675.4,0.03860895]
[1732973915519,1.5839,3676.1,3675.5,0.55]
[1732973915675,0.41521827,3676.0,3675.6,0.03865413]
[1732973916817,0.41521827,3676.0,3675.3,0.01089074]
[1732973916998,1.11,3676.0,3675.7,0.0386136]
[1732973917198,1.11,3676.0,3675.3,0.01089074]
[1732973917399,1.11,3676.0,3675.8,0.03857308]
[1732973917715,1.11,3676.0,3675.3,0.01089074]
[1732973917920,1.11,3676.0,3675.5,0.55]
[1732973918140,1.11,3676.0,3675.6,0.03865413]
[1732973918576,2.22,3676.0,3675.6,0.03865413]
[1732973919740,2.22,3676.0,3675.7,0.55]
[1732973920031,2.22,3676.0,3675.7,1.48672851]
[1732973920189,3.33,3676.0,3675.9,0.55]
[1732973920570,3.33,3676.0,3675.9,6.77072966]
[1732973921773,4.44,3676.0,3675.9,6.77072966]
[1732973923642,5.55,3676.0,3675.9,7.04222966]
[1732973924283,5.55,3676.0,3675.9,2.45252038]
[1732973924483,5.55,3676.0,3675.9,6.38924889]
[1732973924728,5.55,3676.0,3675.9,6.11774889]
[1732973924933,5.55,3676.0,3675.9,6.38924889]
[1732973925092,6.66,3676.0,3675.9,6.11774889]
[1732973925298,6.66,3676.0,3675.9,2.18102038]
[1732973926034,6.66,3676.0,3675.9,2.45252038]
[1732973926793,7.77,3676.0,3675.9,2.45252038]
[1732973927588,7.77,3676.0,3675.9,5.45252038]
[1732973928493,8.88,3676.0,3675.9,5.45252038]
[1732973930243,9.99,3676.0,3675.9,5.45252038]
[1732973930584,9.99,3676.0,3675.9,8.18252393]
[1732973931935,11.1,3676.0,3675.9,8.18252393]
[1732973932142,11.1,3676.0,3675.9,12.18252393]
[1732973933538,12.21,3676.0,3675.9,12.18252393]
[1732973934807,12.21,3676.0,3675.9,12.28252393]
[1732973935048,13.32,3676.0,3675.9,12.28252393]
[1732973936289,1.1974949,3676.0,3675.9,14.35954671]
[1732973936617,0.94626188,3676.6,3676.3,1.7859]
[1732973936830,0.94626188,3676.6,3676.5,5.73994556]
[1732973937335,0.94626188,3676.6,3676.5,5.77789999]
[1732973937704,0.94626188,3676.6,3676.5,9.77789999]
[1732973937903,1.11,3677.5,3677.1,1.7859]
[1732973938104,7.25877002,3677.2,3677.1,3.86292278]
[1732973938305,8.36877002,3677.2,3677.1,4.41292278]
[1732973938504,8.36877002,3677.2,3677.1,7.41292278]
[1732973938692,8.36877002,3677.2,3677.1,11.45058442]
[1732973938897,8.36877002,3677.2,3677.1,7.45058442]
[1732973939092,8.36877002,3677.2,3677.1,7.41292278]
[1732973940044,9.47877002,3677.2,3677.1,11.41292278]
[1732973940240,8.58730002,3677.2,3677.1,11.41292278]
[1732973940542,8.58730002,3677.2,3677.1,11.45058442]
[1732973941502,9.69730002,3677.2,3677.1,11.45058442]
[1732973942295,9.69730002,3677.2,3677.1,11.35058442]
[1732973942501,9.69730002,3677.2,3677.1,11.25058442]
[1732973942700,9.69730002,3677.2,3677.1,11.35058442]
[1732973943250,10.80730002,3677.2,3677.1,6.70058442]
[1732973943541,10.80730002,3677.2,3677.1,6.66292278]
[1732973943745,10.80546661,3677.2,3677.1,6.66292278]
[1732973944114,10.80546661,3677.2,3677.1,4.5859]
[1732973944317,10.80546661,3677.2,3677.1,6.66292278]
[1732973944643,10.80546661,3677.2,3677.1,6.93442278]
[1732973944815,11.91546661,3677.2,3677.1,6.93442278]
[1732973945543,11.91546661,3677.2,3677.1,5.34852278]
[1732973945857,11.91546661,3677.2,3677.1,2.34852278]
[1732973946649,13.02546661,3677.2,3677.1,2.34852278]
[1732973946829,13.02546661,3677.2,3677.1,2.62702278]
[1732973947040,13.02546661,3677.2,3677.1,0.55]
[1732973947406,13.02546661,3677.2,3677.0,0.2715]
[1732973947613,13.02546661,3677.2,3677.1,0.2715]
[1732973947858,13.02546661,3677.2,3677.1,0.8215]
[1732973948362,14.13546661,3677.2,3677.1,0.8215]
[1732973950016,15.24546661,3677.2,3677.1,0.8215]
[1732973950217,15.24546661,3677.2,3677.1,0.2715]
[1732973951132,15.24546661,3677.2,3676.9,0.2715]
[1732973951539,15.24546661,3677.2,3677.1,0.2715]
[1732973951737,16.35546661,3677.2,3677.1,0.8215]
[1732973953358,17.46546661,3677.2,3677.1,0.8215]
[1732973955031,18.57546661,3677.2,3677.1,0.8215]
[1732973955522,18.57546661,3677.2,3677.1,1.909013]
[1732973956337,20.23276661,3677.2,3677.1,1.909013]
[1732973956528,20.23276661,3677.2,3677.1,1.859013]
[1732973956727,21.34276661,3677.2,3677.1,1.859013]
[1732973956954,20.70676661,3677.2,3677.1,1.859013]
[1732973958338,21.81676661,3677.2,3677.1,1.859013]
[1732973958959,20.15946661,3677.2,3677.1,1.859013]
[1732973959976,21.26946661,3677.2,3677.1,1.859013]
[1732973961474,25.65260208,3677.2,3677.1,1.587513]
[1732973961695,26.76260208,3677.2,3677.1,0.89887563]
[1732973961840,26.76260208,3677.2,3676.8,0.04324431]
[1732973961841,1.6573,3677.1,3676.8,0.04324431]
[1732973962035,1.6573,3677.0,3676.8,0.04324431]
[1732973963347,2.7673,3677.0,3676.8,0.04324431]
[1732973963548,1.6573,3676.9,3676.8,0.04324431]
[1732973965039,2.7673,3676.9,3676.8,0.04324431]
[1732973966749,3.8773,3676.9,3676.8,0.04324431]
[1732973967088,6.60313547,3676.9,3676.8,0.04324431]
[1732973968442,7.71313547,3676.9,3676.8,0.04324431]
[1732973970164,8.82313547,3676.9,3676.8,0.04324431]
[1732973971784,9.93313547,3676.9,3676.8,0.04324431]
[1732973973402,11.04313547,3676.9,3676.8,0.04324431]
[1732973975146,12.15313547,3676.9,3676.8,0.04324431]
[1732973975293,12.15313547,3676.9,3675.2,0.01195168]
[1732973975294,0.1,3676.3,3675.2,0.01195168]
[1732973975602,1.59,3675.6,3675.2,0.01195168]
[1732973976753,1.11,3675.6,3675.2,0.01195168]
[1732973977041,1.59,3675.5,3675.2,0.01195168]
[1732973978429,2.7,3675.5,3675.2,0.01195168]
[1732973980196,3.81,3675.5,3675.2,0.01195168]
[1732973980541,4.2889,3675.5,3675.2,0.01195168]
[1732973980921,4.2275,3675.5,3675.2,0.01195168]
[1732973981741,5.3375,3675.5,3675.2,0.01195168]
[1732973982047,5.2743,3675.5,3675.2,0.01195168]
[1732973982416,5.2195,3675.5,3675.2,0.01195168]
[1732973983459,6.3295,3675.5,3675.2,0.01195168]
[1732973983604,0.58755,3675.4,3674.3,0.8218]
[1732973983806,5.8375,3675.5,3675.4,0.55]
[1732973984107,4.44,3675.5,3674.3,0.8218]
[1732973984444,1.0918,3675.4,3674.5,0.55]
[1732973984830,1.0918,3675.4,3674.7,0.55]
[1732973985037,2.2018,3675.4,3674.7,0.55]
[1732973985202,2.2018,3675.4,3674.9,0.55]
[1732973986253,1.45152165,3675.4,3674.3,0.2718]
[1732973986458,1.45152165,3675.4,3675.0,0.03367306]
[1732973986635,2.56152165,3675.4,3674.3,0.2718]
[1732973986803,2.56152165,3675.4,3675.1,0.03370401]
[1732973987006,2.56152165,3675.4,3674.1,0.2718]
[1732973987248,1.59,3675.3,3674.2,2.10897569]
[1732973987428,1.59,3675.3,3674.2,2.14316419]
[1732973988010,1.59,3675.3,3674.4,0.2718]
[1732973988206,2.7,3675.3,3674.5,0.55]
[1732973988552,2.7,3675.3,3674.5,0.58439545]
[1732973988855,1.6151,3675.1,3674.5,0.03439545]
[1732973989064,1.6151,3675.1,3674.2,0.2718]
[1732973989222,1.6151,3675.1,3674.6,0.0343527]
[1732973989560,1.6151,3675.1,3674.2,0.2718]
[1732973989704,2.7251,3675.1,3674.7,0.03431216]
[1732973989901,3.42421,3675.1,3674.1,0.2718]
[1732973990157,2.7251,3675.1,3674.9,0.55]
[1732973991591,3.8351,3675.1,3674.9,0.55]
[1732973993545,4.9451,3675.1,3674.9,0.55]
[1732973995026,6.0551,3675.1,3674.9,0.55]
[1732973995776,1.6514,3675.0,3674.9,0.55]
[1732973995984,2.46514,3675.0,3674.9,0.55]
[1732973996163,2.46514,3675.0,3674.0,3.0]
[1732973996326,1.6514,3674.9,3673.9,0.56207489]
[1732973996526,1.6514,3674.9,3674.1,0.03457197]
[1732973996780,2.7614,3674.9,3674.1,0.03457197]
[1732973996982,0.801514,3674.8,3673.9,0.56207489]
[1732973997275,0.801514,3674.8,3674.0,0.03461253]
[1732973997972,1.6514,3674.7,3674.1,0.55]
[1732973998364,1.11,3674.7,3674.3,0.55]
[1732973998571,1.11,3674.7,3673.9,0.55579386]
[1732973998572,1.6514,3674.5,3673.9,0.28399386]
[1732973998939,1.6514,3674.5,3673.1,0.32877569]
[1732973999142,3.72842278,3674.5,3673.1,0.32877569]
[1732973999347,1.6514,3674.4,3673.2,0.03499754]
[1732973999541,1.6514,3674.4,3673.3,0.32877569]
[1732973999795,1.6514,3674.4,3673.4,0.30671638]
[1732974000093,2.7614,3674.4,3673.5,0.60057569]
[1732974000292,2.7614,3674.4,3673.6,2.1099]
[1732974000588,1.6514,3674.3,3673.6,0.03483523]
[1732974000945,1.11,3674.4,3673.7,2.21176023]
[1732974001199,1.11,3674.4,3673.8,0.03475409]
[1732974001491,2.22,3674.4,3673.9,0.32877569]
[1732974001655,2.22,3674.4,3674.0,0.2718]
[1732974001847,2.22,3674.4,3674.2,0.2718]
[1732974002051,2.22,3674.4,3674.3,0.2718]
[1732974002389,2.22,3674.4,3674.3,0.8218]
[1732974002588,2.22,3674.4,3674.3,0.85635128]
[1732974003359,3.33,3674.4,3674.3,0.85635128]
[1732974004949,4.44,3674.4,3674.3,0.85635128]
[1732974005395,4.44,3674.4,3674.3,0.8218]
[1732974005781,4.44,3674.4,3674.3,2.3817]
[1732974005984,4.44,3674.4,3674.3,8.11058301]
[1732974006182,4.44,3674.4,3674.3,8.14513429]
[1732974006383,4.44,3674.4,3674.3,4.50821151]
[1732974006561,5.55,3674.4,3674.3,2.74502697]
[1732974007076,5.55,3674.4,3674.3,5.74502697]
[1732974008173,6.66,3674.4,3674.3,5.74502697]
[1732974008362,6.66,3674.4,3674.3,2.41625128]
[1732974008563,6.66,3674.4,3674.3,0.85635128]
[1732974009751,7.77,3674.4,3674.3,0.85635128]
[1732974010622,7.77,3674.4,3674.3,2.49665128]
[1732974010782,7.77,3674.4,3674.3,2.82542697]
[1732974011185,7.77,3674.4,3674.3,6.14851151]
[1732974011401,7.22,3674.4,3674.3,6.14851151]
[1732974011618,8.33,3674.4,3674.3,6.14851151]
[1732974012120,8.33,3674.4,3674.3,6.24851151]
[1732974013385,9.44,3674.4,3674.3,6.24851151]
[1732974014014,9.33222157,3674.4,3674.3,10.24851151]
[1732974014233,8.26395477,3674.4,3674.3,10.24851151]
[1732974014919,9.37395477,3674.4,3674.3,6.14851151]
[1732974015676,9.37395477,3674.4,3674.3,6.69724537]
[1732974015901,9.37395477,3674.4,3674.3,6.14724537]
[1732974016116,9.37395477,3674.4,3674.3,2.49538514]
[1732974016321,9.37395477,3674.4,3674.3,1.94665128]
[1732974016524,10.48395477,3674.4,3674.3,1.94665128]
[1732974017335,10.48395477,3674.4,3674.3,5.49665128]
[1732974017480,10.48395477,3674.4,3674.3,5.82542697]
[1732974017831,10.48395477,3674.4,3674.3,6.14851151]
[1732974018419,11.59395477,3674.4,3674.3,6.14851151]
[1732974018823,11.59395477,3674.4,3674.3,10.14851151]
[1732974019030,11.59395477,3674.4,3674.3,9.82542697]
[1732974019327,11.04395477,3674.4,3674.3,9.82542697]
[1732974019535,11.04395477,3674.4,3674.3,9.49665128]
[1732974019825,11.04395477,3674.4,3674.3,5.49665128]
[1732974019983,12.15395477,3674.4,3674.3,5.49665128]
[1732974021338,12.15395477,3674.4,3674.3,5.93337406]
[1732974021703,13.26395477,3674.4,3674.3,5.93337406]
[1732974022017,13.26395477,3674.4,3674.3,7.43647406]
[1732974022746,13.26395477,3674.4,3674.3,7.76524975]
[1732974022944,13.26395477,3674.4,3674.3,8.18637388]
[1732974023127,4.44,3675.1,3675.0,3.66441221]
[1732974023440,4.44,3675.1,3675.0,7.43589796]
[1732974024536,4.44,3675.1,3675.0,11.43589796]
[1732974024963,5.55,3675.1,3675.0,11.43589796]
[1732974025119,5.55,3675.1,3675.0,11.76467365]
[1732974025962,5.55,3675.1,3675.0,7.76467365]
[1732974026623,6.66,3675.1,3675.0,7.76467365]
[1732974026955,6.66,3675.1,3675.0,7.43589796]
[1732974027324,6.66,3675.1,3675.0,0.85577518]
[1732974027542,6.66,3675.1,3675.0,5.93279796]
[1732974028152,6.66,3675.1,3675.0,7.43589796]
[1732974028360,7.77,3675.1,3675.0,7.990444]
[1732974029848,7.77,3675.1,3675.0,7.43589796]
[1732974030055,8.88,3675.1,3675.0,7.43589796]
[1732974031424,8.88,3675.1,3675.0,5.93279796]
[1732974031621,9.99,3675.1,3675.0,0.85577518]
[1732974031877,9.99,3675.1,3675.0,0.8836526]
[1732974033167,11.1,3675.1,3675.0,0.8836526]
[1732974033880,11.1,3675.1,3675.0,0.3336526]
[1732974034227,11.1,3675.1,3674.4,0.2718]
[1732974034461,11.1,3675.1,3674.6,0.2718]
[1732974034672,11.54526462,3675.1,3674.6,0.2718]
[1732974034822,12.21,3675.1,3674.8,0.2718]
[1732974035726,1.568,3675.0,3674.8,0.2718]
[1732974036092,1.568,3675.0,3673.9,2.07702278]
[1732974036093,1.568,3675.0,3674.0,0.2718]
[1732974036293,1.568,3675.0,3674.4,0.2718]
[1732974036584,2.678,3675.0,3674.6,0.2718]
[1732974036943,2.678,3675.0,3674.8,0.2718]
[1732974037967,2.678,3675.0,3674.4,0.2718]
[1732974038171,3.788,3675.0,3674.6,0.2718]
[1732974038539,5.4988,3675.0,3674.8,0.2718]
[1732974038741,1.568,3674.9,3674.8,0.2718]
[1732974039489,1.568,3674.9,3673.6,0.2718]
[1732974039825,1.568,3674.8,3673.7,0.32877569]
[1732974039997,1.568,3674.8,3673.8,0.2718]
[1732974040149,1.568,3674.8,3674.0,0.2718]
[1732974040485,1.568,3674.7,3674.1,0.612365]
[1732974040696,1.568,3674.7,3674.1,0.062365]
[1732974041151,1.568,3674.7,3673.5,0.2718]
[1732974041347,1.568,3674.6,3673.6,0.2718]
[1732974041575,1.568,3674.6,3673.6,0.33454082]
[1732974041770,1.568,3674.5,3673.6,0.33454082]
[1732974042762,1.568,3674.5,3673.7,0.55]
[1732974042965,1.568,3674.4,3673.7,0.55]
[1732974043287,1.568,3674.4,3673.8,0.06265815]
[1732974044665,2.678,3674.4,3673.5,0.2718]
[1732974044968,2.678,3674.4,3673.9,0.06261682]
[1732974045310,2.678,3674.4,3674.0,0.0625755]
[1732974045690,2.678,3674.4,3673.6,0.55]
[1732974045993,1.11,3674.4,3674.1,0.06253417]
[1732974046213,1.11,3674.4,3674.2,0.32877569]
[1732974046501,2.22,3674.4,3674.3,0.55]
[1732974046702,2.22,3674.4,3674.2,0.06249285]
[1732974046909,2.22,3674.4,3674.3,0.06245153]
[1732974047339,2.22,3674.4,3674.1,0.8218]
[1732974047468,2.22,3674.4,3674.3,0.06244823]
[1732974047667,2.22,3674.4,3674.2,0.06248955]
[1732974047890,2.22,3674.4,3674.3,0.06244823]
[1732974048105,3.33,3674.4,3674.3,0.06244823]
[1732974048294,3.33,3674.4,3674.1,0.8218]
[1732974048627,3.33,3674.4,3674.3,0.06244823]
[1732974049133,3.33,3674.4,3674.0,0.2718]
[1732974049341,1.568,3674.3,3673.6,0.8218]
[1732974049488,1.568,3674.3,3674.1,0.06253087]
[1732974049833,2.678,3674.3,3674.2,0.33428955]
[1732974051305,3.788,3674.3,3674.2,0.33428955]
[1732974051925,3.788,3674.3,3674.2,0.88428955]
[1732974052643,3.788,3674.3,3674.2,0.33428955]
[1732974053000,4.898,3674.3,3673.5,0.2718]
[1732974053195,4.898,3674.3,3673.7,0.2718]
[1732974053440,3.33,3674.3,3673.9,0.2718]
[1732974053744,1.5235,3674.2,3674.1,0.2718]
[1732974054601,2.6335,3674.2,3674.1,0.2718]
[1732974054796,2.6335,3674.2,3673.9,0.2718]
[1732974054992,2.6335,3674.2,3673.8,0.55]
[1732974054993,2.6335,3674.2,3674.1,0.2718]
[1732974055843,2.6335,3674.2,3673.5,0.2718]
[1732974056149,2.6335,3674.2,3673.7,0.2718]
[1732974056307,3.7435,3674.2,3673.7,0.2718]
[1732974056509,3.7435,3674.2,3673.9,0.2718]
[1732974057548,3.7435,3674.2,3673.7,0.2718]
[1732974057839,3.7435,3674.2,3673.9,0.2718]
[1732974058140,4.8535,3674.2,3674.1,0.8218]
[1732974058504,4.8535,3674.2,3674.1,0.88441876]
[1732974058950,3.33,3674.2,3674.1,0.88441876]
[1732974059646,4.44,3674.2,3674.1,0.88441876]
[1732974061247,5.55,3674.2,3674.1,0.88441876]
[1732974063216,6.66,3674.2,3674.1,0.88441876]
[1732974064924,7.77,3674.2,3674.1,0.88441876]
[1732974066764,8.88,3674.2,3674.1,0.88441876]
[1732974068557,9.99,3674.2,3674.1,0.88441876]
[1732974070462,11.1,3674.2,3674.1,0.88441876]
[1732974072064,12.21,3674.2,3674.1,0.88441876]
[1732974073732,13.32,3674.2,3674.1,0.88441876]
[1732974075687,14.43,3674.2,3674.1,0.88441876]
[1732974076257,14.43,3674.2,3674.1,2.82763271]
[1732974076456,14.43,3674.2,3674.1,6.1564084]
[1732974077091,15.54,3674.2,3674.1,6.1564084]
[1732974077802,15.54,3674.2,3674.1,5.83749445]
[1732974079108,16.65,3674.2,3674.1,0.33441876]
[1732974079780,16.65,3674.2,3673.6,0.2718]
[1732974080192,16.65,3674.2,3673.8,0.2718]
[1732974080581,16.65,3674.2,3673.5,0.32877569]
[1732974080582,16.65,3674.2,3674.1,0.8218]
[1732974080779,17.76,3674.2,3674.1,0.8218]
[1732974080978,17.76,3674.2,3674.1,0.88432096]
[1732974082427,18.87,3674.2,3674.1,0.88432096]
[1732974083983,19.98,3674.2,3674.1,0.88432096]
[1732974085589,21.09,3674.2,3674.1,0.88432096]
[1732974087324,22.2,3674.2,3674.1,0.88432096]
[1732974088896,23.31,3674.2,3674.1,0.88432096]
[1732974090411,24.42,3674.2,3674.1,0.88432096]
[1732974092323,25.53,3674.2,3674.1,0.88432096]
[1732974092897,25.53,3674.2,3674.1,2.81619665]
[1732974093140,25.53,3674.2,3674.1,5.81619665]
[1732974093429,25.53,3674.2,3674.1,6.13467289]
[1732974094116,26.64,3674.2,3674.1,6.13467289]
[1732974095200,26.64,3674.2,3674.1,6.35726223]
[1732974095594,27.75,3674.2,3674.1,6.35726223]
[1732974097340,28.86,3674.2,3674.1,6.35726223]
[1732974098301,28.86,3674.2,3674.1,6.02848654]
[1732974099003,29.97,3674.2,3674.1,6.02848654]
[1732974100781,31.08,3674.2,3674.1,0.88432096]
[1732974100979,31.08,3674.2,3674.1,1.82248724]
[1732974101271,32.60661058,3674.2,3674.1,0.2718]
[1732974101476,34.88906534,3674.2,3674.1,0.2718]
[1732974102276,32.60661058,3674.2,3674.1,0.2718]
[1732974102435,32.08181058,3674.2,3674.1,0.2718]
[1732974103153,32.08181058,3674.2,3674.1,0.8218]
[1732974103357,32.08181058,3674.2,3674.1,0.87468509]
[1732974104272,33.19181058,3674.2,3674.1,0.87468509]
[1732974104481,37.55244605,3674.2,3674.1,0.8218]
[1732974105869,1.6348,3674.1,3673.4,1.088537]
[1732974107193,1.6348,3674.1,3673.5,0.55]
[1732974107563,2.7448,3674.1,3673.5,0.55]
[1732974108193,2.7448,3674.1,3673.5,3.55]
[1732974108568,2.7448,3674.1,3673.7,0.55]
[1732974109008,2.7448,3674.1,3673.9,0.55]
[1732974109214,3.8548,3674.1,3673.7,0.55]
[1732974109420,3.8548,3674.1,3674.0,0.05292642]
[1732974109571,3.8548,3674.1,3673.6,0.55]
[1732974110099,3.8548,3674.1,3673.8,0.55]
[1732974110276,3.8548,3674.1,3673.5,0.55]
[1732974110894,4.9648,3674.1,3673.5,0.55]
[1732974112780,6.0748,3674.1,3673.5,0.55]
[1732974114479,5.55,3674.1,3673.5,3.55]
[1732974114691,5.55,3674.1,3673.4,2.735737]
[1732974114692,5.55,3674.1,3674.0,0.55]
[1732974114900,5.55,3674.1,3674.0,0.60304619]
[1732974115318,5.55,3674.1,3673.8,3.0]
[1732974115550,5.55,3674.1,3673.8,0.87877569]
[1732974115721,5.55,3674.1,3673.8,3.87877569]
[1732974116160,6.66,3674.1,3674.0,0.55]
[1732974116540,6.66,3674.1,3673.9,0.55]
[1732974117811,7.77,3674.1,3673.9,0.55]
[1732974119529,8.88,3674.1,3673.9,0.55]
[1732974120439,8.88,3674.1,3674.0,2.1685]
[1732974120831,8.88,3674.1,3674.0,2.22163187]
[1732974121156,9.99,3674.1,3674.0,2.1685]
[1732974122967,11.1,3674.1,3674.0,2.1685]
[1732974124560,12.21,3674.1,3674.0,2.1685]
[1732974124727,12.21,3674.1,3674.0,2.49727569]
[1732974125141,12.21,3674.1,3674.0,5.55027682]
[1732974126121,13.32,3674.1,3674.0,5.55027682]
[1732974126539,13.32,3674.1,3674.0,2.22150113]
[1732974127050,34.30181058,3674.2,3674.1,0.55]
[1732974127251,34.30181058,3674.2,3674.1,4.2475174]
[1732974127562,34.30181058,3674.2,3674.1,4.30043437]
[1732974127721,35.41181058,3674.2,3674.1,4.30043437]
[1732974129275,35.41181058,3674.2,3674.1,7.30043437]
[1732974129478,36.52181058,3674.2,3674.1,7.30043437]
[1732974129623,35.96681058,3674.2,3674.1,7.30043437]
[1732974131150,37.07681058,3674.2,3674.1,7.30043437]
[1732974132879,38.18681058,3674.2,3674.1,7.30043437]
[1732974134580,39.29681058,3674.2,3674.1,7.30043437]
[1732974134795,39.29681058,3674.2,3674.1,7.83264785]
[1732974136297,40.40681058,3674.2,3674.1,7.83264785]